Cogmind - Beta 16 @@@ ROGUE MODE // 2026.01.08 @ 21:37:12 Player: k1ll3rb0t Result: Destroyed by P-60 Hacker with Shock Rifle Performance ------------- Evolutions (2) 1000 Regions Visited (8) 1600 Robots Destroyed (183) 915 Value Destroyed (6492) 6492 Prototype IDs (5) 100 Alien Tech Used (0) 0 Bonus (1818) 1818 TOTAL SCORE: 11925 Bonus ------- High Alert Combat Kills 1166 Follower Combat Kills 70 Entered Garrisons 600 Friendly Fire -18 Cogmind --------- Core Integrity 0/550 Matter 258/300 Energy 64/100 System Corruption 2% Temperature Cool (0) Movement Rolling (130) Ox2 Location -8/Garrison Parts ------- > --- POWER (1) -------- (None) > --- PROPULSION (4) --- Armored Huge Wheel > --- UTILITY (3) ------ Cooling System Huge Storage Unit > --- WEAPON (3) ------- (None) > --- INVENTORY (25) --- Light Nuclear Core Micro Nuclear Core Micro Nuclear Core Light Treads Light Treads Combat Airjet Combat Airjet Combat Airjet Combat Airjet Combat Airjet Combat Airjet Combat Airjet Improved Heat Sink High-capacity Matter Pod (200) Seismic Detector Light Armor Plating Graphene Brace Hacking Suite Recalibrator Mini Grenade Launcher Missile Launcher Plasma Cutter Ripper Peak State ------------ > --- POWER ------------ Light Angular Momentum Engine > --- PROPULSION ------- Improved Treads Armored Treads Armored Treads Advanced Treads > --- UTILITY ---------- Huge Storage Unit Improved Heavy Armor Plating > --- WEAPON ----------- Enhanced Autogun Enhanced Autogun Gauss Rifle > --- INVENTORY -------- Light Treads Light Treads Combat Airjet Combat Airjet Combat Airjet Combat Airjet Combat Airjet Combat Airjet Combat Airjet Cooling System Large Storage Unit High-capacity Matter Pod Seismic Detector Improved Light Armor Plating Hacking Suite Gatling Laser Gatling Laser Gatling Laser Minigun Mini Grenade Launcher Mini Grenade Launcher Plasma Cutter Ripper [Rating: 46] Favorites ----------- Power Improved Ion Engine Engine Improved Ion Engine Power Core Light Nuclear Core Propulsion Light Treads Treads Light Treads Leg Aluminum Leg Wheel Compact Wheel Hover Unit Aerolev Unit Flight Unit Improved VTOL Module Utility Huge Storage Unit Device Seismic Detector Storage Huge Storage Unit Processor Advanced Targeting Computer Protection Improved Heavy Armor Plating Weapon Enhanced Autogun Energy Gun Gatling Laser Energy Cannon Beam Cannon Ballistic Gun Enhanced Autogun Ballistic Cannon Light Cannon Launcher Mini Grenade Launcher Special Weapon Mining Laser Impact Weapon Mace Slashing Weapon Ripper Build | -11 -10 -9 -8 -8 -8 -8 -8 -8 ------- Run | Yrd Mat Mat Mat Gar Mat Gar Mat Gar Slots Evolved 4 | . . 2 2 . . . . . Power . | . . . . . . . . . Propulsion 2 | . . 1 1 . . . . . Utility 1 | . . 1 . . . . . . Weapon 1 | . . . 1 . . . . . Parts Attached 101 | 7 16 21 8 14 17 . 15 3 Power 13 | 1 2 2 . 2 4 . 1 1 Engine 12 | 1 2 2 . 2 4 . 1 . Core 1 | . . . . . . . . 1 Reactor . | . . . . . . . . . Propulsion 37 | 2 5 7 5 4 8 . 5 1 Treads 25 | . . 5 5 4 6 . 5 . Leg 5 | 2 3 . . . . . . . Wheel 5 | . 2 2 . . . . . 1 Hover 1 | . . . . . 1 . . . Flight 1 | . . . . . 1 . . . Utility 21 | 2 4 2 1 5 1 . 6 . Device 6 | 1 1 . 1 1 . . 2 . Storage 5 | 1 3 . . . 1 . . . Processor 1 | . . . . 1 . . . . Hackware . | . . . . . . . . . Protection 9 | . . 2 . 3 . . 4 . Artifact . | . . . . . . . . . Weapon 30 | 2 5 10 2 3 4 . 3 1 Energy Gun 4 | 1 . . . . . . 2 1 Energy Cannon 3 | . 1 1 1 . . . . . Ballistic Gun 17 | 1 2 7 1 1 4 . 1 . Ballistic Cannon 1 | . 1 . . . . . . . Launcher 2 | . . 1 . 1 . . . . Special Weapon 1 | . 1 . . . . . . . Impact Weapon 1 | . . 1 . . . . . . Slashing Weapon 1 | . . . . 1 . . . . Piercing Weapon . | . . . . . . . . . Special Melee Weapon . | . . . . . . . . . Unidentified Prototypes 5 | . . 3 . . 2 . . . Parts Lost 26 | . 2 . . 1 4 . 8 11 Power 6 | . 1 . . . 3 . . 2 Propulsion 6 | . . . . 1 . . 3 2 Utility 4 | . . . . . . . 2 2 Weapon 10 | . 1 . . . 1 . 3 5 Highest Loss Streak 8 | . 1 . . 1 1 . 6 8 To Critical Strikes 2 | . . . . . . . 2 . Average Backups 22 | 4 11 24 24 24 24 25 23 24 Power 1 | . 1 2 2 1 . . . 2 Propulsion 7 | 2 4 7 6 7 8 10 8 9 Utility 6 | . 2 7 8 7 6 8 7 7 Weapon 6 | 1 3 7 7 8 8 6 5 4 Tool/Special . | . . . . . . . . . Unused Backups 49 | . 4 10 3 6 8 . . 18 Power 7 | . . 3 1 . . . . 3 Propulsion 16 | . 2 2 2 1 1 . . 8 Utility 18 | . 1 3 . 4 6 . . 4 Weapon 7 | . 1 2 . 1 1 . . 2 Tool/Special 1 | . . . . . . . . 1 Average Slot Usage (%) 95 | . 100 96 98 99 89 90 96 92 Engine 9 | . 14 11 9 9 8 9 9 3 Treads 26 | . . 16 36 35 35 36 35 23 Leg 3 | . 19 . . . . . . . Wheel 3 | . 8 15 . . . . . 6 Device 5 | . 14 10 9 1 . . 4 9 Storage 10 | . 14 11 9 9 9 9 9 9 Processor 1 | . . . . 7 . . . . Protection 7 | . . 8 9 8 8 9 10 9 Energy Gun 1 | . 1 . . . . . 8 18 Energy Cannon 1 | . 5 2 7 . . . . . Ballistic Gun 19 | . 13 17 17 20 26 22 18 5 Ballistic Cannon 1 | . 6 1 . . . . . . Peak Build Rating 46 | 7 9 20 25 37 46 43 43 39 Average Rating 28 | 5 7 17 22 31 40 42 35 34 On Entrance 23 | . 7 9 19 25 37 43 42 31 Avg Prop Armor Cover (%) 8 | . 8 8 . . . . . 13 Naked Turns . | . . . . . . . . . Heaviest Build 114 | 14 92 101 106 111 114 113 113 108 Greatest Support 85 | 20 26 60 83 83 85 85 85 80 Greatest Overweight (x) 9 | 3 9 6 1 1 1 1 1 3 Average Overweight (x) 1 | . 1 2 1 1 1 1 1 2 Largest Inventory Capacity 25 | 8 25 25 25 25 25 25 25 25 Average Capacity 23 | 7 15 25 25 25 25 25 25 25 Most Carried 25 | 7 19 25 25 25 25 25 25 25 Average Carried 22 | 4 11 24 24 24 24 25 23 24 Final Capacity 25 | 8 25 25 25 25 25 25 25 25 Final Carried 25 | 7 19 25 25 25 25 25 25 23 Class Distribution -------------------- 32% | Tank 29% | Mutant 14% | Scavenger-Mutant 14% | Scavenger-Tank 6% | Scavenger-Gunner Dominant Class ---------------- Mutant | -10/Materials Mutant | -9/Materials Scavenger-Tank | -8/Materials Scavenger-Mutant | -8/Garrison Tank | -8/Materials Tank | -8/Garrison Scavenger-Tank | -8/Materials Scavenger-Tank | -8/Garrison Resources | -11 -10 -9 -8 -8 -8 -8 -8 -8 ----------- Run | Yrd Mat Mat Mat Gar Mat Gar Mat Gar Matter Collected 5004 | 263 640 421 342 983 1553 75 530 197 Remotely . | . . . . . . . . . Salvage Created 6908 | 18 822 430 485 1028 2310 75 1070 670 Parts 414 | 3 41 29 33 66 137 7 58 40 Haulers Intercepted 8 | . 2 2 1 . 2 . 1 . Recyclers Shooed 3 | . 1 . 1 . 1 . . . Parts Field Recycled . | . . . . . . . . . Retrieved Matter . | . . . . . . . . . Parts Self-Destructed . | . . . . . . . . . Prevented . | . . . . . . . . . Parts Restored . | . . . . . . . . . Kills | -11 -10 -9 -8 -8 -8 -8 -8 -8 ------- Run | Yrd Mat Mat Mat Gar Mat Gar Mat Gar Combat Hostiles Destroyed 141 | . 7 10 12 24 42 5 21 20 Guns 97 | . 4 6 5 13 33 1 21 14 Cannons 7 | . 1 2 4 . . . . . AOE 36 | . 1 2 3 11 9 4 . 6 Classes Destroyed 18 | 1 7 3 . 1 5 . . 1 Worker 5 | . 1 1 . . 2 . 1 . Builder 8 | . 3 . . . 5 . . . Tunneler 4 | 1 1 . . . 2 . . . Hauler 8 | . 2 2 1 . 2 . 1 . Recycler 7 | . 4 . . . 2 . 1 . Mechanic 4 | . . 1 . . 2 . 1 . Operator 2 | . 1 . . . 1 . . . Watcher 4 | . 1 . . 1 2 . . . Swarmer 38 | . . 3 3 6 9 3 3 11 Grunt 57 | . 7 3 4 13 17 . 10 3 Brawler 2 | . . . . . 1 1 . . Duelist 3 | . . . . . 2 1 . . Sentry 29 | . . 4 5 4 9 . 5 2 Demolisher 1 | . . . . . . . . 1 Specialist 4 | . . . . . 2 . 2 . Hunter 2 | . . . . . 1 . 1 . Programmer 4 | . . . . 1 . . . 3 Heavy 1 | . . . . . 1 . . . Best Kill Streak 9 | 1 5 3 6 4 9 3 9 6 Combat Bots Only 8 | . 2 3 5 4 6 3 8 6 Max Kills in Single Turn 4 | 1 2 1 3 4 3 3 3 2 Gunslinging 2 | . . . . . . . 2 1 Exploded 4 | . 1 1 3 4 2 3 . 2 Melee . | . . . . . . . . . Uniques/NPCs Destroyed . | . . . . . . . . . Combat | -11 -10 -9 -8 -8 -8 -8 -8 -8 -------- Run | Yrd Mat Mat Mat Gar Mat Gar Mat Gar Hostile Shots Fired 701 | . 38 47 66 93 197 6 139 115 Missed 184 | . 7 12 23 32 47 1 37 25 Hits 517 | . 31 35 43 61 150 5 102 90 Melee 5 | . . . . . 5 . . . Projectile 512 | . 31 35 43 61 145 5 102 90 AOE 4 | . . . . . . . . 4 Critical Strikes 27 | . 1 2 2 2 9 . 5 6 Damage Taken 7730 | . 496 445 640 910 2527 34 1390 1288 Core 699 | . 43 93 52 87 108 20 92 204 Absorbed by Shields 23 | . . . . 23 . . . . Regen/Repaired (Parts) 676 | . . . . . 676 . . . Core Remaining (%) 86 | 100 82 76 . . . . . . Volleys Fired 405 | 14 69 32 29 67 109 8 44 33 Largest 3 | 1 2 2 3 3 3 2 3 3 Hottest 240 | 20 100 90 116 75 78 55 188 240 Shots Fired 923 | 14 125 62 80 133 301 13 131 64 Gun 794 | 14 77 48 52 120 290 9 131 53 Cannon 74 | . 35 12 27 . . . . . Launcher 42 | . . 2 1 13 11 4 . 11 Special 13 | . 13 . . . . . . . Kinetic 735 | 14 94 50 52 120 290 9 90 16 Thermal 143 | . 28 10 27 . . . 41 37 Explosive 42 | . . 2 1 13 11 4 . 11 Electromagnetic 3 | . 3 . . . . . . . Robot Hit Streak 28 | 2 10 8 10 16 14 6 28 11 Robot Miss Streak 6 | 2 3 6 2 2 4 2 5 6 Penetration Max 1 | . . . . . 1 . 1 . Secondary Targets 14 | . . . . . . . 6 8 Max Gunslinging Chain 2 | . . . . . . . 2 1 Shots Hit Robots 626 | 7 70 41 56 98 198 7 100 49 Core Hits 338 | 2 29 22 22 61 102 7 52 41 Critical Kills 5 | . 2 . . . 3 . . . Critical Parts Destroyed 2 | . 2 . . . . . . . Critical Strikes 8 | . 5 . . . 3 . . . Meltdown 2 | . 2 . . . . . . . Destroy 5 | . 2 . . . 3 . . . Blast 1 | . 1 . . . . . . . Melee Attacks 32 | . . 8 . 20 . . . 4 Impact 21 | . . 8 . 13 . . . . Slashing 11 | . . . . 7 . . . 4 Piercing . | . . . . . . . . . Sneak Attacks . | . . . . . . . . . Combat Hostiles . | . . . . . . . . . Follow-up Attacks . | . . . . . . . . . Damage Inflicted 14952 | 57 1027 806 1150 2722 4748 391 2154 1897 Guns 10581 | 57 549 523 674 1738 3898 87 2116 939 Cannons 870 | . 366 161 343 . . . . . Explosions 3251 | . 96 122 133 984 800 304 . 812 Melee 146 | . . . . . . . . 146 Ramming 104 | . 16 . . . 50 . 38 . Kinetic 9131 | 57 739 562 674 1738 3898 87 1218 158 Thermal 2379 | . 235 122 343 . . . 898 781 Explosive 3155 | . . 122 133 984 800 304 . 812 Electromagnetic 37 | . 37 . . . . . . . Impact . | . . . . . . . . . Slashing 146 | . . . . . . . . 146 Piercing . | . . . . . . . . . Highest Corruption 2 | . . . . . 1 1 1 2 Average Corruption 1 | . . . . . 1 1 1 1 Corruption Purged . | . . . . . . . . . Corruption Blocked . | . . . . . . . . . Effects 22 | . . . . . 12 1 6 3 Message Errors 6 | . . . . . 1 1 3 1 Matter Fused 3 | . . . . . 1 . 2 . Heat Flow Errors 3 | . . . . . 3 . . . Energy Discharges 5 | . . . . . 3 . 1 1 Data Loss (minor) 1 | . . . . . 1 . . . Data Loss (major) 1 | . . . . . 1 . . . Misfires 2 | . . . . . 1 . . 1 Weapon Failures 1 | . . . . . 1 . . . Overload Shots . | . . . . . . . . . Overflow Damage 120 | . 23 . . 47 26 . . 24 Projectiles . | . . . . . . . . . Explosions 120 | . 23 . . 47 26 . . 24 Melee . | . . . . . . . . . Knockbacks 6 | . 6 . . . . . . . Impact 1 | . 1 . . . . . . . Kinetic 5 | . 5 . . . . . . . Secondary . | . . . . . . . . . Self-Inflicted Damage 177 | . 52 . . 12 81 . . 32 Shots 6 | . 1 . . 1 2 . . 2 Rammed 15 | . . . . . 8 . 7 . Targets Rammed 21 | . 3 . . . 10 . 8 . Kicked 3 | . 3 . . . . . . . Crushed 3 | . . . . . 2 . 1 . Highest Temperature 286 | . 117 228 15 84 281 2 241 286 Average Temperature 62 | . 24 71 4 26 79 1 64 106 Received Heat Transfer 2784 | . 270 162 360 435 846 . 504 207 Effects 3 | . . . . . . . 3 . Interference 3 | . . . . . . . 3 . Siege Activations . | . . . . . . . . . Martial Activations . | . . . . . . . . . Shielding Activations . | . . . . . . . . . Robots Disrupted . | . . . . . . . . . Combat Hostiles . | . . . . . . . . . Robots Corrupted . | . . . . . . . . . Combat Hostiles . | . . . . . . . . . Parts Fried . | . . . . . . . . . Impact Corruptions . | . . . . . . . . . Robots Melted 2 | . 2 . . . . . . . Combat Hostiles 1 | . 1 . . . . . . . Parts Melted 10 | . 2 . 1 . . . 4 3 Heat Transferred 4872 | . 346 259 629 . . . 2025 1613 Parts Sabotaged . | . . . . . . . . . Parts Stolen . | . . . . . . . . . Parts Stripped . | . . . . . . . . . Power Chain Reactions 1 | . 1 . . . . . . . Alert | -11 -10 -9 -8 -8 -8 -8 -8 -8 ------- Run | Yrd Mat Mat Mat Gar Mat Gar Mat Gar Maximum Alert Level 4 | . . . 1 4 4 3 2 3 Low Security (%) 36 | 100 100 100 86 9 . . . . Level 1 10 | . . . 13 22 . . 55 19 Level 2 29 | . . . . 22 61 . 44 50 Level 3 19 | . . . . 28 35 100 . 29 Level 4 4 | . . . . 16 2 . . . Level 5 . | . . . . . . . . . High Security . | . . . . . . . . . Max Security . | . . . . . . . . . Peak Influence 1339 | 5 68 193 220 1339 1125 873 588 862 Initial 731 | . . 10 12 132 652 731 425 351 Average 442 | . 19 73 85 684 696 794 431 587 Influence Increases 5023 | 5 419 389 324 1237 1355 142 545 607 Destroy 0b10 Robot/C 2860 | . 140 200 240 520 840 100 420 400 Destroy 0b10 Robot/NC 245 | 5 65 20 5 30 90 . 20 10 Destroy Leader 552 | . 46 64 52 30 228 . 102 30 Allied During Kill 2 | . . . . 2 . . . . Successful Hack 74 | . 4 15 4 14 23 . . 14 Disable Machine 210 | . 60 15 . 15 75 15 . 30 Anti-Garrison Action 550 | . . . . 500 . . . 50 Destroy Structure 245 | . 14 15 8 81 54 27 3 43 Lose Combat Pursuer 285 | . 90 60 15 45 45 . . 30 Influence Decreases 4175 | 5 393 385 150 102 1569 394 878 299 Entered New Map 1824 | . . 16 18 72 687 394 448 189 Time Decay 1921 | 5 373 369 132 . 692 . 350 . Lost Part 260 | . 20 . . 10 40 . 80 110 Lost Ally 20 | . . . . 20 . . . . Purge Threat 150 | . . . . . 150 . . . Squads Dispatched 17 | . 1 . 4 . 8 . 4 . Investigation 2 | . . . 1 . . . 1 . Extermination . | . . . . . . . . . Reinforcement 8 | . 1 . . . 4 . 3 . Assault 2 | . . . . . 2 . . . Garrison 5 | . . . 3 . 2 . . . Intercept . | . . . . . . . . . Searches Triggered . | . . . . . . . . . Construction Impeded . | . . . . . . . . . Haulers Reinforced . | . . . . . . . . . Active Scanning Responses . | . . . . . . . . . Cargo Convoy Interrupts . | . . . . . . . . . Stealth | -11 -10 -9 -8 -8 -8 -8 -8 -8 --------- Run | Yrd Mat Mat Mat Gar Mat Gar Mat Gar Distress Signals 10 | . 2 . . 1 5 . 2 . Communications Jammed . | . . . . . . . . . Distress Signals . | . . . . . . . . . Times Spotted 214 | . 27 15 13 27 73 5 27 27 Peak Tracking Total 8 | . 3 5 4 4 6 3 7 8 Tactical Retreats 13 | . 3 2 1 2 3 . . 2 Traps | -11 -10 -9 -8 -8 -8 -8 -8 -8 ------- Run | Yrd Mat Mat Mat Gar Mat Gar Mat Gar Traps Triggered 10 | . . 1 1 7 . . . 1 Indirectly . | . . . . . . . . . Trap Hack Attempts . | . . . . . . . . . Triggered . | . . . . . . . . . Disarmed . | . . . . . . . . . Reprogrammed . | . . . . . . . . . Reused . | . . . . . . . . . Traps Extracted . | . . . . . . . . . Installed . | . . . . . . . . . Triggered . | . . . . . . . . . Machines | -11 -10 -9 -8 -8 -8 -8 -8 -8 ---------- Run | Yrd Mat Mat Mat Gar Mat Gar Mat Gar Machines Disabled 18 | . 4 1 . 4 5 1 . 3 Max in Single Turn 1 | . 1 1 . 1 1 1 . 1 Garrison Relay 5 | . . . . 4 . . . 1 Machines Repaired . | . . . . . . . . . Machines Dismantled . | . . . . . . . . . Machines Sabotaged . | . . . . . . . . . Overloaded Fab Kills . | . . . . . . . . . Hacking | -11 -10 -9 -8 -8 -8 -8 -8 -8 --------- Run | Yrd Mat Mat Mat Gar Mat Gar Mat Gar Machines Accessed 28 | . 7 4 1 2 10 . 3 1 Terminals 22 | . 6 4 . 2 7 . 2 1 Fabricators . | . . . . . . . . . Repair Stations 1 | . . . . . 1 . . . Recycling Units 1 | . 1 . . . . . . . Scanalyzers 1 | . . . . . 1 . . . Garrison Access 3 | . . . 1 . 1 . 1 . Total Hacks 70 | . 17 9 1 4 27 . 11 1 Successful 33 | . 4 4 1 1 19 . 3 1 Failed 37 | . 13 5 . 3 8 . 8 . Catastrophic 6 | . 1 . . . 2 . 3 . Database Lockouts . | . . . . . . . . . Manual 16 | . 5 3 . . 2 . 6 . Terminals 50 | . 14 9 . 4 13 . 9 1 Fabricators . | . . . . . . . . . Repair Stations 5 | . . . . . 5 . . . Recycling Units 3 | . 3 . . . . . . . Scanalyzers 8 | . . . . . 8 . . . Garrison Access 4 | . . . 1 . 1 . 2 . Terminal Hacks 17 | . 4 4 . 1 5 . 2 1 Robot Analysis 2 | . 1 . . . 1 . . . Branch Access Points 1 | . 1 . . . . . . . Emergency Access Points 2 | . . . . 1 . . . 1 Alert Level 1 | . . . . . 1 . . . Unreport Threat 1 | . . . . . 1 . . . Locate Traps 4 | . 2 1 . . . . 1 . Maintenance Status 1 | . . . . . . . 1 . Hauler Manifests 2 | . . 1 . . 1 . . . Registered Components 2 | . . 1 . . 1 . . . Zone Layout 1 | . . 1 . . . . . . Fabricator Hacks . | . . . . . . . . . Repair Station Hacks 4 | . . . . . 4 . . . Scan Component 2 | . . . . . 2 . . . Repair 2 | . . . . . 2 . . . Recycling Unit Hacks . | . . . . . . . . . Scanalyzer 8 | . . . . . 8 . . . Insert Component 3 | . . . . . 3 . . . Analyze 3 | . . . . . 3 . . . Retrieve Study 2 | . . . . . 2 . . . Garrison Access Hacks 3 | . . . 1 . 1 . 1 . Unlock Access 3 | . . . 1 . 1 . 1 . Unauthorized Hacks 1 | . . . . . 1 . . . Terminals 1 | . . . . . 1 . . . Operators 1 | . . . . . 1 . . . Fabricators . | . . . . . . . . . Repair Stations . | . . . . . . . . . Recycling Units . | . . . . . . . . . Scanalyzers . | . . . . . . . . . Garrison Access . | . . . . . . . . . Data Cores Recovered . | . . . . . . . . . Used . | . . . . . . . . . Hacking Detections 24 | . 7 4 . 2 9 . 2 . Full Trace Events 5 | . 2 . . 1 1 . 1 . Feedback Events 1 | . . . . . 1 . . . Corruption 1 | . . . . . 1 . . . Feedback Blocked . | . . . . . . . . . Robot Schematics Acquired . | . . . . . . . . . Robots Built . | . . . . . . . . . Authchips . | . . . . . . . . . Time . | . . . . . . . . . Total Robot Build Rating . | . . . . . . . . . Part Schematics Acquired 3 | . . . . . 3 . . . Parts Built . | . . . . . . . . . Authchips . | . . . . . . . . . Time . | . . . . . . . . . Total Part Build Rating . | . . . . . . . . . Part Studies Acquired 1 | . . . . . 1 . . . Parts Repaired 2 | . . . . . 2 . . . Time 126 | . . . . . 126 . . . Parts Recycled . | . . . . . . . . . Recycled Matter . | . . . . . . . . . Retrieved Matter . | . . . . . . . . . Retrieved Components . | . . . . . . . . . Parts Scanalyzed 3 | . . . . . 3 . . . Part Schematics Acquired 3 | . . . . . 3 . . . Parts Damaged 1 | . . . . . 1 . . . Bothacking | -11 -10 -9 -8 -8 -8 -8 -8 -8 ------------ Run | Yrd Mat Mat Mat Gar Mat Gar Mat Gar Used RIF Installer . | . . . . . . . . . Robots Hacked . | . . . . . . . . . Non-combat . | . . . . . . . . . Combat . | . . . . . . . . . Robot Hacks Applied . | . . . . . . . . . Relay Couplers Released 23 | . . . . 18 . . . 5 Machine Destruction 19 | . . . . 14 . . . 5 Programmers 4 | . . . . 4 . . . . Fabnet Peak Effective % . | . . . . . . . . . Robots Rewired . | . . . . . . . . . Allies Hacked 1 | . . . . 1 . . . . Hacks Repelled . | . . . . . . . . . Allies | -11 -10 -9 -8 -8 -8 -8 -8 -8 -------- Run | Yrd Mat Mat Mat Gar Mat Gar Mat Gar Total Allies 1 | . . . . 1 . . . . Largest Group 1 | . . . . 1 . . . . Highest-Rated Group 25 | . . . . 25 . . . . Highest-Rated Ally 25 | . . . . 25 . . . . Initial Warlord ECA Mod 8 | . . . . . 8 8 8 8 Total Orders . | . . . . . . . . . Ally Attacks 5 | . . . . 5 . . . . Total Damage 165 | . . . . 165 . . . . Kills 2 | . . . . 2 . . . . Allies Corrupted . | . . . . . . . . . Allies Melted . | . . . . . . . . . Intel | -11 -10 -9 -8 -8 -8 -8 -8 -8 ------- Run | Yrd Mat Mat Mat Gar Mat Gar Mat Gar Active Infowar (turns) 2961 | 21 1651 1251 38 . . . . . Seismic 2961 | 21 1651 1251 38 . . . . . Robot Analysis Total 2 | . 1 . . . 1 . . . Derelict Logs Recovered . | . . . . . . . . . Drone Launches . | . . . . . . . . . Drone Recoveries . | . . . . . . . . . Exploration | -11 -10 -9 -8 -8 -8 -8 -8 -8 ------------- Run | Yrd Mat Mat Mat Gar Mat Gar Mat Gar Turns Passed 9555 | 125 1651 1264 290 2177 2835 91 791 331 Spaces Moved 3718 | 69 892 613 73 764 926 30 244 107 Core 8 | 8 . . . . . . . . Treads 2195 | . . 128 73 764 926 30 244 30 Legs 640 | 61 579 . . . . . . . Wheels 875 | . 313 485 . . . . . 77 Hover . | . . . . . . . . . Flight . | . . . . . . . . . Fastest Speed 50 | 50 105 135 240 240 238 238 235 145 Average Speed 203 | 119 150 171 240 240 241 238 238 171 Slowest Speed 560 | 200 400 560 240 240 245 238 240 240 Overloaded Moves . | . . . . . . . . . Propulsion Burnouts . | . . . . . . . . . Robots Hopped . | . . . . . . . . . Potential Cave-ins . | . . . . . . . . . Cave-ins Triggered . | . . . . . . . . . Exploration Rate (%) 41 | 6 96 40 9 85 78 8 26 25 Regions Visited 8 Branch Regions . Pre-discovered Areas . | . . . . . . . . . Known Exits Taken 3 | . . . 1 . 1 . 1 . Unknown Exits Taken 3 | 1 1 1 . . . . . . Scrap Searched . | . . . . . . . . . Spaces Dug 16 | . 10 5 . 1 . . . . Terrain Destroyed 169 | . 12 15 6 16 50 18 3 49 Melee 6 | . . 5 . 1 . . . . Projectile 14 | . 10 . . . . . 3 1 AOE 149 | . 2 10 6 15 50 18 . 48 Terrain Rammed . | . . . . . . . . . Walls Destroyed . | . . . . . . . . . Machines Disabled . | . . . . . . . . . Actions | -11 -10 -9 -8 -8 -8 -8 -8 -8 --------- Run | Yrd Mat Mat Mat Gar Mat Gar Mat Gar Total 4949 | 97 1057 759 126 995 1338 40 351 186 Wait 392 | . 36 28 1 61 222 . 29 15 Move 3711 | 68 891 612 73 761 926 29 244 107 Hop . | . . . . . . . . . Pick Up 105 | 8 20 25 5 21 15 . 7 4 Fast Attach 27 | 6 4 5 . 1 8 . 2 1 Attach 24 | 1 2 3 2 1 3 . 8 4 Detach . | . . . . . . . . . Swap 112 | . 16 22 9 31 19 3 6 6 Drop 105 | . 16 24 7 25 26 . 3 4 Fire 405 | 14 69 32 29 67 109 8 44 33 Melee 32 | . . 8 . 20 . . . 4 Ram . | . . . . . . . . . Kick 3 | . 3 . . . . . . . Crush 18 | . . . . . 10 . 8 . Escape Stasis 15 | . . . . 7 . . . 8 Rewire . | . . . . . . . . . Trap . | . . . . . . . . . Miscellaneous . | . . . . . . . . . Route ------- -11/Scrapyard -10/Materials (discovered 5 exits: *Mat x3 / *Min x2) -9/Materials -8/Materials (discovered 2 exits: [*Sto] / Gar) -8/Garrison (discovered 3 exits: *Mat x3) -8/Materials (discovered 3 exits: [*Fac] / [*Sto] / Gar) -8/Garrison -8/Materials -8/Garrison History --------- Turn | Location | Event 40 | -11/Scrapyard | Discovered new exit (range 13) 126 | -11/Scrapyard | Entered Materials 303 | -10/Materials | Build established: Mutant 347 | -10/Materials | Discovered new exit (range 5) 502 | -10/Materials | Discovered new exit (range 7) 794 | -10/Materials | Identified exit to Mines 1490 | -10/Materials | Discovered new exit (range 9) 1680 | -10/Materials | Discovered new exit (range 14) 1777 | -10/Materials | Entered another Materials area 1777 | -9/Materials | Evolved 2 slots: Propulsion x1, Utility x1 2318 | -9/Materials | Discovered new exit (range 11) 3041 | -9/Materials | Entered another Materials area 3041 | -8/Materials | Evolved 2 slots: Propulsion x1, Weapon x1 3075 | -8/Materials | Discovered new exit (range 16) 3085 | -8/Materials | Garrison activated, responded to threat 3331 | -8/Materials | Identified exit to Garrison 3331 | -8/Materials | Entered Garrison 3373 | -8/Garrison | Build established: Scavenger-Tank 3511 | -8/Garrison | Triggered checkpoint 3547 | -8/Garrison | Garrison Relay disabled 4157 | -8/Garrison | Triggered checkpoint 4169 | -8/Garrison | Triggered checkpoint 4188 | -8/Garrison | Triggered checkpoint 4392 | -8/Garrison | Build established: Scavenger-Gunner 4540 | -8/Garrison | Discovered new exit (range 14) 4623 | -8/Garrison | Attempted to access garrison exit controls, blocked by remote lockdown 4878 | -8/Garrison | Rescued a captive Derelict 4903 | -8/Garrison | Discovered new exit (range 12) 4909 | -8/Garrison | Triggered checkpoint 5056 | -8/Garrison | Attempted to access garrison exit controls, blocked by remote lockdown 5292 | -8/Garrison | Garrison Relay disabled 5345 | -8/Garrison | Discovered new exit (range 14) 5391 | -8/Garrison | Garrison Relay disabled 5508 | -8/Garrison | Entered Materials 5749 | -8/Materials | Build established: Tank 5908 | -8/Materials | First assault squad dispatched 7446 | -8/Materials | Discovered new exit (range 16) 7866 | -8/Materials | Repaired Broken Enh. Autogun 7917 | -8/Materials | Repaired Imp. Heavy Armor Plating 8126 | -8/Materials | Discovered new exit (range 13) 8167 | -8/Materials | Garrison activated, responded to threat 8342 | -8/Materials | Identified exit to Garrison 8343 | -8/Materials | Entered Garrison 8366 | -8/Garrison | Triggered checkpoint 8407 | -8/Garrison | Discovered new exit (range 5) 8434 | -8/Garrison | Entered Materials 8667 | -8/Materials | Core integrity fell below 50% 8742 | -8/Materials | Lost 6 parts (2n2u2w) 8967 | -8/Materials | Build established: Scavenger-Tank 8998 | -8/Materials | Destroyed 8 combat bots 9225 | -8/Materials | Identified exit to Garrison 9225 | -8/Materials | Entered Garrison 9285 | -8/Garrison | Triggered checkpoint 9339 | -8/Garrison | Garrison Relay disabled 9456 | -8/Garrison | Triggered checkpoint 9536 | -8/Garrison | Core integrity fell below 20% 9556 | -8/Garrison | Destroyed by P-60 Hacker with Shock Rifle Last Messages --------------- 09538_ The unstable cave ceiling collapses. 09539_ Gatling Laser destroyed. 09539_ Destroyed Shock Absorption System. 09541_ D-53 Grenadier heat damages Imp. Light Armor Plating, Lgt. Deuterium Engine, Mni. Grenade Launcher, Cmb. Airjet. 09541_ D-53 Grenadier overheating. 09542_ Lgt. Nuclear Core destroyed. 09542_ D-53 Grenadier destroyed. 09542_ Switching to secondary target: G-47 Trooper. 09545_ Critical hit (Burn: +37). 09546_ Gatling Laser destroyed. 09547_ G-47 Trooper destroyed. 09547_ Lgt. Treads destroyed. 09550_ Imp. Light Armor Plating destroyed. 09550_ Garrison Terminal disabled. 09552_ Lgt. Treads destroyed. 09552_ Gatling Laser destroyed. 09555_ Mni. Grenade Launcher+ destroyed. Map ----- +----------------------------------------------------+ | ?????????????????????????????????????????????????? | | ????????????????+????????????????????????????????? | | ??????????+??????????????????????????????????????? | | ?????????????????????????????????????????????????? | | ?????????????????????????????????????????????????? | | ??????????????????????????????????+??????????????? | | ?????????????????????????????????????????????????? | | ??????+??????+?????+?????????????????????????????? | | ?????????????????????????????????????????????????? | | ???????????????????????##+##?????????????????????? | | ?????????+?????? ??? #?????????????????????? | | ???????????????? ?? ?????????????????????? | | ???????????? ?? ? ?????????????????????? | | ?????+??????# ?# ?# #?????????????????????? | | ????????????# ## ## ###???????????????????? | | ????????????" %????????????????????? | | ??????????+?? %[% ????????????????????? | | ?????????????? ?????????????????????? | | ??????????????? % ?????????????????????? | | ????????????# ??# # ###???????????????????? | | ?????????#### # #[% #???????????????????? | | ???????? ^ # ###?????????????????? | | ???????? ^ %=g #?????????????????? | | ????????+???# *g[ #????????????????## | | ?????????????# ## ## ###?????????????#"" | | ?????????????????# ??# @ ??????#" | | ??????????????????????# ########????????# | | ??????????????????????# = #???????????????#" | | ??+??+???????+???????# # #???????????????? | | ?????????????????????## p ## #????????????????# | | +????????????????????? p p ###############+#### | | ?????????????????????## | | ??????????????????????## | | +?????????????+????????# | | ???????????????????????### +############ ### | | ??????????????????????????## # ????# ##### #?# | | ????????????????????????????## #???# # =#?# | | ?????????????????????????????#++##### ### [#=%### | | ?+??????+????????????????????# % *%[ =## | | ?????????????????????????????# !! =|%[!%## | | ?????????????????????????????##!!!## # = #!|[# # | | ?????????????????????????????#"" ""# ##%!%##= ### | | ?????????????????????????????##################?# | | ????????????????????????????????????????????????? | | ??????????+?????????????????????????????????????? | | ??????????????+?????????????????????????????????? | | ????????????????????????????????????????????????? | | +???????????????????????????????????????????????? | | ?????????????????????????????????????????????????# | | ?????????????+?+?????????????????????????????????? | +----------------------------------------------------+ Best States ------------- Heat Dissipation 53 Energy Generation 18 Energy Capacity 265 Matter Stores 300 Matter Capacity 300 Sight Range 16 Terrain Scan Density 10 Armor Coverage 600 Evasion (%) 55 Targeting Accuracy 8 Recoil Reduction 4 Item Schematics ----------------- Cmb. Airjet | -8/Materials | Scanalyzed Mni. Grenade Launcher | -8/Materials | Scanalyzed Enh. Autogun | -8/Materials | Scanalyzed Robot Schematics ------------------ None Fabricated ------------ Nothing Repaired ---------- Enh. Autogun | 36% | -8/Materials | Broken Imp. Heavy Armor Plating | 4% | -8/Materials Studied --------- Mni. Grenade Launcher | -8/Materials | Hacked Alien Tech Used ----------------- None Achievements -------------- None Challenges ------------ None Game ------ Seed NeutronSmartExtrapolator Manual? 0 Play Time 01:46:51 Cumulative 247.3 hours Start 2026.01.04 @ 00:24:58 End 2026.01.08 @ 21:37:12 Sessions 2 Manual Loads 0 Difficulty Rogue Special Mode None Game No. 72 Rogue 72 Adventurer 0 Explorer 0 Win Type - Total 3 Types 2/0/0/1/0/0/0/0/0/0 Lore% 66 Gallery% 65 Achievement% 51 Wizard Run 0 Options --------- Layout 1 ASCII 0 Keyboard 0 Movement Mouse Keybinds 0 Fullscreen 1 Font 32/SmallcapsGlow Map View 50x35 Zoom Use 0% Tactical HUD 1 Map Filters NONE Filters NONE Steam 1 RUN: d9e4f672-ec2e-4423-ab06-d533e0f3cfd2